[Event "Forni di Sopra Dolomiti 2018"]
[Site "Forni di Sopra"]
[Date "2018.06.14"]
[Round "7.11"]
[White "Loiacono, Leonardo"]
[Black "Faglioni, Isacco"]
[Result "1-0"]
[ECO "A55"]
[WhiteElo "2313"]
[BlackElo "1925"]
[Annotator "NA"]
[PlyCount "61"]
[EventDate "2018.??.??"]
[EventType "swiss"]
[EventCountry "ITA"]
[SourceTitle "playchess.com"]
[Source "ChessBase"]
[SourceQuality "1"]
[TimeControl "40/5400+30:1800+30"]

1. d4 {[%emt 0:00:30]} Nf6 {[%emt 0:02:00]} 2. c4 {[%emt 0:00:00]} d6 {[%emt 0:00:30]} 3. Nc3 {[%emt 0:00:00]} Nbd7 {[%emt 0:00:30]} 4. e4 {[%emt 0:00:00]} e5 {[%emt 0:00:00]} 5. Nf3 {[%emt 0:00:00]} Be7 {[%emt 0:00:00]} 6. Be2 {[%emt 0:00:30]} O-O {[%emt 0:00:30]} 7. O-O {[%emt 0:00:30]} c6 {[%emt 0:00:00]} 8. Re1 {[%emt 0:00:30]} a6 {[%emt 0:03:00]} 9. Bf1 {[%emt 0:03:30]} h6 {[%emt 0:08:30]} 10. b3 {[%emt 0:05:30]} b5 {[%emt 0:04:30]} 11. cxb5 {[%emt 0:11:30]} cxb5 {[%emt 0:05:30]} 12. a4 {[%emt 0:05:30]} b4 {[%emt 0:01:30]} 13. Nd5 {[%emt 0:00:30]} Nxd5 {[%emt 0:01:30]} 14. exd5 {[%emt 0:00:00]} e4 {[%emt 0:01:30]} 15. Nd2 {[%emt 0:03:00]} f5 {[%emt 0:02:30]} 16. f3 {[%emt 0:01:30]} Bf6 {[%emt 0:16:30]} 17. Bb2 {[%emt 0:00:30]} Nc5 {[%emt 0:04:30]} 18. Qc2 {[%emt 0:05:30]} Nd3 {[%emt 0:03:30]} 19. Bxd3 {[%emt 0:00:30]} exd3 {[%emt 0:00:00]} 20. Qxd3 {[%emt 0:00:00]} Bb7 {[%emt 0:00:00]} 21. Kh1 {[%emt 0:00:00]} Bg5 {[%emt 0:02:30]} 22. Nc4 {[%emt 0:03:30]} Bxd5 {[%emt 0:00:30]} 23. Bc1 {[%emt 0:00:30]} f4 {[%emt 0:11:30]} 24. a5 {[%emt 0:02:30]} Bh4 {[%emt 0:04:30]} 25. Re2 {[%emt 0:01:30]} Bg3 {[%emt 0:00:30]} 26. Nb6 {[%emt 0:02:30]} Qh4 {[%emt 0:07:30]} 27. h3 {[%emt 0:00:30]} Qh5 {[%emt 0:03:05]} 28. Nxa8 {[%emt 0:01:30]} Rxa8 {[%emt 0:01:01]} 29. Bd2 {[%emt 0:00:30]} g5 {[%emt 0:01:29]} 30. Re7 {[%emt 0:01:30]} Bf7 {[%emt 0:02:23]} 31. Qf5 {[%emt 0:03:30]} 1-0

[Event "Forni di Sopra Dolomiti 2018"]
[Site "Forni di Sopra"]
[Date "2018.06.14"]
[Round "7.12"]
[White "Dappiano, Andrea"]
[Black "Dobboletta, Alex"]
[Result "1-0"]
[ECO "C10"]
[WhiteElo "2279"]
[BlackElo "2105"]
[Annotator "NA"]
[PlyCount "73"]
[EventDate "2018.??.??"]
[EventType "swiss"]
[EventCountry "ITA"]
[SourceTitle "playchess.com"]
[Source "ChessBase"]
[SourceQuality "1"]
[TimeControl "40/5400+30:1800+30"]

1. e4 {[%emt 0:00:30]} e6 {[%emt 0:06:00]} 2. Nf3 {[%emt 0:00:00]} d5 {[%emt 0:01:30]} 3. Nc3 {[%emt 0:00:00]} dxe4 {[%emt 0:02:30]} 4. Nxe4 {[%emt 0:00:00]} Nd7 {[%emt 0:00:00]} 5. d4 {[%emt 0:00:00]} Ngf6 {[%emt 0:00:00]} 6. Bd3 {[%emt 0:00:30]} Nxe4 {[%emt 0:00:30]} 7. Bxe4 {[%emt 0:00:00]} Nf6 {[%emt 0:00:00]} 8. Bg5 {[%emt 0:02:00]} Be7 {[%emt 0:02:00]} 9. Bxf6 {[%emt 0:00:00]} Bxf6 {[%emt 0:02:30]} 10. Qd3 {[%emt 0:01:00]} c5 {[%emt 0:04:30]} 11. Qb5+ {[%emt 0:07:30]} Bd7 {[%emt 0:06:30]} 12. Qxc5 {[%emt 0:00:30]} Be7 {[%emt 0:00:30]} 13. Qh5 {[%emt 0:06:30]} Qb6 {[%emt 0:06:30]} 14. O-O {[%emt 0:03:30]} g6 {[%emt 0:04:30]} 15. Qh6 {[%emt 0:04:30]} O-O-O {[%emt 0:00:30]} 16. Qe3 {[%emt 0:07:30]} f6 {[%emt 0:05:30]} 17. a4 {[%emt 0:07:30]} g5 {[%emt 0:03:30]} 18. a5 {[%emt 0:00:30]} Qc7 {[%emt 0:00:00]} 19. a6 {[%emt 0:04:30]} b6 {[%emt 0:00:00]} 20. c4 {[%emt 0:04:30]} g4 {[%emt 0:00:30]} 21. Nd2 {[%emt 0:03:30]} f5 {[%emt 0:02:30]} 22. Bb7+ {[%emt 0:01:30]} Kb8 {[%emt 0:00:30]} 23. Rfc1 {[%emt 0:09:30]} Bd6 {[%emt 0:04:30]} 24. g3 {[%emt 0:00:30]} e5 {[%emt 0:05:30]} 25. c5 {[%emt 0:09:30]} exd4 {[%emt 0:03:30]} 26. Qd3 {[%emt 0:00:00]} Be7 {[%emt 0:02:30]} 27. cxb6 {[%emt 0:01:00]} Qxb6 {[%emt 0:00:30]} 28. Nc4 {[%emt 0:00:30]} Qb5 {[%emt 0:02:30]} 29. Qd2 {[%emt 0:00:30]} Qc5 {[%emt 0:03:30]} 30. Qf4+ {[%emt 0:03:30]} Qc7 {[%emt 0:00:30]} 31. Ne5 {[%emt 0:02:30]} Qd6 {[%emt 0:00:30]} 32. Bc6 {[%emt 0:01:30]} Bxc6 {[%emt 0:05:30]} 33. Nxc6+ {[%emt 0:04:51]} Ka8 {[%emt 0:00:30]} 34. Nxd8 {[%emt 0:00:21]} Qxf4 {[%emt 0:00:00]} 35. Rc8+ {[%emt 0:00:15]} Qb8 {[%emt 0:02:00]} 36. Rxb8+ {[%emt 0:00:05]} Kxb8 {[%emt 0:00:00]} 37. Nc6+ {[%emt 0:00:07]} 1-0

[Event "Forni di Sopra Dolomiti 2018"]
[Site "Forni di Sopra"]
[Date "2018.06.15"]
[Round "8.5"]
[White "Di Benedetto, Edoardo"]
[Black "Sgircea, Silvia-Raluca"]
[Result "1/2-1/2"]
[ECO "B31"]
[WhiteElo "2288"]
[BlackElo "2204"]
[Annotator "NA"]
[PlyCount "68"]
[EventDate "2018.??.??"]
[EventType "swiss"]
[EventCountry "ITA"]
[SourceTitle "playchess.com"]
[Source "ChessBase"]
[SourceQuality "1"]
[TimeControl "40/5400+30:1800+30"]

1. e4 {[%emt 0:00:30]} c5 {[%emt 0:01:00]} 2. Nf3 {[%emt 0:00:00]} Nc6 {[%emt 0:00:00]} 3. Bb5 {[%emt 0:00:00]} g6 {[%emt 0:00:00]} 4. O-O {[%emt 0:00:30]} Bg7 {[%emt 0:00:00]} 5. Re1 {[%emt 0:00:00]} Nf6 {[%emt 0:01:00]} 6. Nc3 {[%emt 0:00:00]} O-O {[%emt 0:00:30]} 7. e5 {[%emt 0:00:30]} Ng4 {[%emt 0:01:30]} 8. Bxc6 {[%emt 0:00:00]} dxc6 {[%emt 0:00:30]} 9. d3 {[%emt 0:00:00]} Nh6 {[%emt 0:00:00]} 10. Bxh6 {[%emt 0:06:30]} Bxh6 {[%emt 0:00:00]} 11. Qe2 {[%emt 0:00:30]} Bg7 {[%emt 0:09:30]} 12. a4 {[%emt 0:01:30]} a5 {[%emt 0:03:30]} 13. Rad1 {[%emt 0:02:30]} Bf5 {[%emt 0:11:30]} 14. Ne4 {[%emt 0:01:30]} Qb6 {[%emt 0:05:30]} 15. b3 {[%emt 0:14:30]} Rad8 {[%emt 0:03:30]} 16. Qe3 {[%emt 0:03:30]} Bxe4 {[%emt 0:00:30]} 17. dxe4 {[%emt 0:07:30]} Rxd1 {[%emt 0:06:30]} 18. Rxd1 {[%emt 0:00:30]} Rd8 {[%emt 0:00:30]} 19. Rd3 {[%emt 0:02:30]} Rxd3 {[%emt 0:07:30]} 20. Qxd3 {[%emt 0:00:30]} Qc7 {[%emt 0:00:30]} 21. e6 {[%emt 0:03:30]} fxe6 {[%emt 0:00:30]} 22. g3 {[%emt 0:03:30]} Qd6 {[%emt 0:04:30]} 23. Ng5 {[%emt 0:01:30]} Bf6 {[%emt 0:01:30]} 24. Qxd6 {[%emt 0:00:30]} exd6 {[%emt 0:00:30]} 25. c4 {[%emt 0:00:30]} b5 {[%emt 0:03:30]} 26. Nxe6 {[%emt 0:00:30]} Kf7 {[%emt 0:00:30]} 27. Nf4 {[%emt 0:00:30]} bxa4 {[%emt 0:00:30]} 28. bxa4 {[%emt 0:00:00]} Bd4 {[%emt 0:01:30]} 29. h4 {[%emt 0:08:00]} Kf6 {[%emt 0:08:30]} 30. Kg2 {[%emt 0:20:30]} Ke5 {[%emt 0:01:30]} 31. Kf3 {[%emt 0:00:30]} Bc3 {[%emt 0:01:30]} 32. Ke3 {[%emt 0:00:00]} Bd4+ {[%emt 0:00:30]} 33. Kf3 {[%emt 0:00:00]} Bc3 {[%emt 0:00:30]} 34. Ke3 {[%emt 0:00:30]} Bd4+ {[%emt 0:00:00]} 1/2-1/2

[Event "Forni di Sopra Dolomiti 2018"]
[Site "Forni di Sopra"]
[Date "2018.06.15"]
[Round "8.8"]
[White "De Santis, Alessio"]
[Black "Martinez, Ayelen"]
[Result "1/2-1/2"]
[ECO "A34"]
[WhiteElo "2260"]
[BlackElo "2209"]
[Annotator "NA"]
[PlyCount "35"]
[EventDate "2018.??.??"]
[EventType "swiss"]
[EventCountry "ITA"]
[SourceTitle "playchess.com"]
[Source "ChessBase"]
[SourceQuality "1"]
[TimeControl "40/5400+30:1800+30"]

1. Nf3 {[%emt 0:01:30]} c5 {[%emt 0:03:00]} 2. c4 {[%emt 0:00:30]} g6 {[%emt 0:00:30]} 3. Nc3 {[%emt 0:00:30]} Bg7 {[%emt 0:00:30]} 4. b3 {[%emt 0:00:30]} e5 {[%emt 0:01:30]} 5. e4 {[%emt 0:00:30]} Nc6 {[%emt 0:02:30]} 6. d3 {[%emt 0:00:30]} Nge7 {[%emt 0:00:30]} 7. Be2 {[%emt 0:01:30]} d6 {[%emt 0:01:30]} 8. Bd2 {[%emt 0:01:30]} a6 {[%emt 0:04:30]} 9. h4 {[%emt 0:00:00]} h5 {[%emt 0:00:30]} 10. Nd5 {[%emt 0:03:00]} Nxd5 {[%emt 0:03:30]} 11. cxd5 {[%emt 0:00:30]} Nd4 {[%emt 0:01:30]} 12. Nxd4 {[%emt 0:00:30]} cxd4 {[%emt 0:00:30]} 13. Rc1 {[%emt 0:02:30]} Bd7 {[%emt 0:01:30]} 14. g3 {[%emt 0:01:30]} a5 {[%emt 0:08:30]} 15. Qc2 {[%emt 0:27:30]} Bf6 {[%emt 0:08:30]} 16. Qc7 {[%emt 0:02:30]} Qxc7 {[%emt 0:00:00]} 17. Rxc7 {[%emt 0:00:00]} Ra7 {[%emt 0:00:00]} 18. O-O {[%emt 0:02:00]} 1/2-1/2

[Event "Forni di Sopra Dolomiti 2018"]
[Site "Forni di Sopra"]
[Date "2018.06.15"]
[Round "8.12"]
[White "Vezzosi, Paolo"]
[Black "Battistella, Stefano"]
[Result "1-0"]
[ECO "A41"]
[WhiteElo "2316"]
[BlackElo "2054"]
[Annotator "NA"]
[PlyCount "55"]
[EventDate "2018.??.??"]
[EventType "swiss"]
[EventCountry "ITA"]
[SourceTitle "playchess.com"]
[Source "ChessBase"]
[SourceQuality "1"]
[TimeControl "40/5400+30:1800+30"]

1. e4 {[%emt 0:00:30]} g6 {[%emt 0:01:00]} 2. d4 {[%emt 0:00:30]} Bg7 {[%emt 0:00:00]} 3. c4 {[%emt 0:00:00]} d6 {[%emt 0:00:00]} 4. Be2 {[%emt 0:00:00]} Nc6 {[%emt 0:02:30]} 5. Be3 {[%emt 0:01:30]} e5 {[%emt 0:01:30]} 6. Nf3 {[%emt 0:01:30]} Bg4 {[%emt 0:08:30]} 7. d5 {[%emt 0:02:30]} Bxf3 {[%emt 0:01:30]} 8. Bxf3 {[%emt 0:00:00]} Nd4 {[%emt 0:00:30]} 9. Nc3 {[%emt 0:04:00]} c5 {[%emt 0:27:30]} 10. O-O {[%emt 0:08:30]} Nf6 {[%emt 0:08:30]} 11. g3 {[%emt 0:00:30]} O-O {[%emt 0:03:30]} 12. Bg2 {[%emt 0:00:30]} Qd7 {[%emt 0:02:30]} 13. f3 {[%emt 0:00:30]} a6 {[%emt 0:12:30]} 14. Rf2 {[%emt 0:01:30]} b5 {[%emt 0:00:30]} 15. Qf1 {[%emt 0:00:30]} Rab8 {[%emt 0:02:30]} 16. Bh3 {[%emt 0:00:30]} Qe8 {[%emt 0:02:30]} 17. b3 {[%emt 0:01:30]} b4 {[%emt 0:01:30]} 18. Na4 {[%emt 0:01:30]} Nh5 {[%emt 0:00:30]} 19. Qd3 {[%emt 0:00:30]} f5 {[%emt 0:05:35]} 20. Bxd4 {[%emt 0:07:30]} fxe4 {[%emt 0:02:33]} 21. fxe4 {[%emt 0:01:30]} exd4 {[%emt 0:00:24]} 22. Be6+ {[%emt 0:00:30]} Kh8 {[%emt 0:00:30]} 23. Raf1 {[%emt 0:00:30]} Qe7 {[%emt 0:02:08]} 24. Rxf8+ {[%emt 0:04:30]} Rxf8 {[%emt 0:00:09]} 25. Rxf8+ {[%emt 0:01:30]} Qxf8 {[%emt 0:00:33]} 26. Nb6 {[%emt 0:04:30]} Bh6 {[%emt 0:01:02]} 27. Nd7 {[%emt 0:02:30]} Be3+ {[%emt 0:00:57]} 28. Qxe3 {[%emt 0:01:30]} 1-0

[Event "Forni di Sopra Dolomiti 2018"]
[Site "Forni di Sopra"]
[Date "2018.06.16"]
[Round "9.10"]
[White "Ceschia, Ivano"]
[Black "Dev, Shah"]
[Result "1/2-1/2"]
[ECO "C77"]
[WhiteElo "2325"]
[BlackElo "1997"]
[Annotator "NA"]
[PlyCount "120"]
[EventDate "2018.??.??"]
[EventType "swiss"]
[EventCountry "ITA"]
[SourceTitle "playchess.com"]
[Source "ChessBase"]
[SourceQuality "1"]
[TimeControl "40/5400+30:1800+30"]

{[%evp 8,113,24,8,8,32767,10,11,32767,-7,5,-26,-16,-16,-11,-16,-16,-61,-34,-74,-78,-77,-22,-29,-50,-31,0,0,5,0,0,0,0,0,4,-34,-34,-33,34,-15,-14,-14,0,9,5,16,5,-14,0,0,-7,-22,-16,-11,-7,-11,20,21,24,17,32767,6,0,0,26,20,32767,32767,32767,32767,32767,32767,32767,32767,32767,32767,32767,32767,32767,32767,32767,32767,32767,32767,32767,32767,32767,32767,32767,32767,32767,32767,32767,32767,32767,32767,32767,32767,0,0,0,32767,32767,0,32767,0,0,0]} 1. e4 {[%emt 0:03:30]} e5 {[%emt 0:02:00]} 2. Nf3 {[%emt 0:00:30]} Nc6 {[%emt 0:00:00]} 3. Bb5 {[%emt 0:00:30]} a6 {[%emt 0:00:00]} 4. Ba4 {[%emt 0:00:00]} Nf6 {[%emt 0:00:30]} 5. Bxc6 {[%emt 0:00:00]} dxc6 {[%emt 0:00:00]} 6. d3 {[%emt 0:00:00]} Bd6 {[%emt 0:00:00]} 7. Nbd2 {[%emt 0:00:00]} Be6 {[%emt 0:02:30]} 8. b3 {[%emt 0:07:30] LiveBook: 18 Games C77: Spanische Partie (Anderssen-Variante)} Qe7 {[%emt 0:01:30]} 9. Bb2 {[%emt 0:00:30]} Nd7 {[%emt 0:05:30]} 10. d4 {[%emt 0:22:30]} Bg4 {[%emt 0:05:30]} 11. h3 {[%emt 0:09:30]} Bh5 $146 {[%emt 0:05:30]} ({Vorgänger:} 11... Bxf3 12. Nxf3 O-O-O 13. O-O exd4 14. Qxd4 Bc5 15. Qxg7 Qxe4 {1-0 (52) Ivanov,A (2470)-Fishbein,A (2490) Los Angeles 1989}) 12. O-O {[%emt 0:13:30]} O-O-O {[%emt 0:02:30]} 13. Qe1 {[%emt 0:02:30]} Rhe8 {[%emt 0:04:30]} 14. Qe3 {[%emt 0:05:30]} Kb8 {[%emt 0:01:30]} 15. Rfe1 {[%emt 0:01:30]} f6 {[%emt 0:03:30]} 16. Nc4 {[%emt 0:09:30]} Bxf3 {[%emt 0:02:30]} ({Black should play} 16... Bb4 $17 17. c3 exd4 18. Nxd4 Bc5) 17. Qxf3 {[%emt 0:00:30]} exd4 {[%emt 0:00:30]} 18. Bxd4 {[%emt 0:00:30]} Ne5 {[%emt 0:00:30]} 19. Bxe5 {[%emt 0:00:30]} Bxe5 {[%emt 0:01:30]} 20. Rad1 {[%emt 0:00:30]} Qc5 {[%emt 0:05:30]} 21. Rd3 {[%emt 0:07:41]} Rxd3 {[%emt 0:03:30]} 22. Qxd3 {[%emt 0:00:19]} Qd4 {[%emt 0:00:30]} (22... Bd4 $15 23. Qd2 b5) 23. Qxd4 {[%emt 0:00:45]} Bxd4 {[%emt 0:00:30]} 24. Kf1 {[%emt 0:00:41]} c5 {[%emt 0:01:30]} 25. f3 {[%emt 0:00:33]} b5 {[%emt 0:01:30]} 26. Ne3 {[%emt 0:00:11]} g6 {[%emt 0:00:30]} 27. Ke2 {[%emt 0:01:08]} f5 {[%emt 0:02:30]} 28. Kd3 {[%emt 0:01:10]} f4 {[%emt 0:02:30]} 29. Nd1 {[%emt 0:04:00]} Rd8 {[%emt 0:02:30]} 30. Ke2 {[%emt 0:00:24]} Kb7 {[%emt 0:01:30]} 31. Nf2 {[%emt 0:00:12]} Be3 {[%emt 0:08:30]} 32. Rd1 {[%emt 0:01:45]} Rxd1 {[%emt 0:00:30]} 33. Nxd1 {[%emt 0:00:02]} Bd4 {[%emt 0:00:30]} 34. Kd3 {[%emt 0:02:04]} Kc6 {[%emt 0:00:30]} 35. c3 {[%emt 0:00:05]} Be5 {[%emt 0:00:30]} 36. Nb2 {[%emt 0:02:11]} h5 {[%emt 0:07:30]} 37. Kc2 {[%emt 0:00:36]} Kd6 {[%emt 0:02:30]} 38. Nd3 {[%emt 0:00:11]} g5 {[%emt 0:00:30]} 39. b4 {[%emt 0:03:28]} cxb4 {[%emt 0:09:17]} 40. Nxe5 {[%emt 0:00:00]} Kxe5 {[%emt 0:00:43]} 41. cxb4 {[%emt 0:01:04]} Kd4 {[%emt 0:00:30]} 42. Kd2 {[%emt 0:00:30]} Kc4 {[%emt 0:01:30]} 43. a3 {[%emt 0:02:30]} Kd4 {[%emt 0:01:30]} 44. Kc2 {[%emt 0:00:30]} Kc4 {[%emt 0:04:30]} 45. Kb2 {[%emt 0:00:30]} c5 {[%emt 0:01:30]} 46. bxc5 {[%emt 0:00:30]} Kxc5 {[%emt 0:00:30]} 47. Kc3 {[%emt 0:00:30]} a5 {[%emt 0:00:00]} 48. Kd3 {[%emt 0:01:30]} b4 {[%emt 0:08:00]} 49. axb4+ {[%emt 0:00:30]} axb4 {[%emt 0:00:00]} 50. Kc2 {[%emt 0:00:30]} Kc4 {[%emt 0:00:00]} 51. Kb2 {[%emt 0:00:00]} b3 {[%emt 0:00:00]} 52. Kb1 {[%emt 0:02:00]} Kb4 {[%emt 0:00:00]} 53. Kc1 {[%emt 0:00:30]} Ka3 {[%emt 0:00:30]} 54. Kb1 {[%emt 0:00:30]} Kb4 {[%emt 0:00:30]} 55. Kb2 {[%emt 0:00:30]} Kc4 {[%emt 0:00:00]} 56. Kc1 {[%emt 0:03:30]} Kb4 {[%emt 0:00:00]} 57. Kb1 $11 {[%emt 0:00:00]} Kc4 {[%emt 0:01:30]} 58. Kb2 {[%emt 0:00:00]} Kb4 {[%emt 0:00:30]} 59. e5 {[%emt 0:08:48]} Kc5 {[%emt 0:00:00]} 60. Kxb3 {[%emt 0:00:46]} Kd5 {[%emt 0:00:00]} 1/2-1/2

[Event "Forni di Sopra Dolomiti 2018"]
[Site "Forni di Sopra"]
[Date "2018.06.16"]
[Round "9.12"]
[White "Garofalo, Simone"]
[Black "Di Benedetto, Desiree"]
[Result "0-1"]
[ECO "C07"]
[WhiteElo "2110"]
[BlackElo "2293"]
[Annotator "NA"]
[PlyCount "82"]
[EventDate "2018.??.??"]
[EventType "swiss"]
[EventCountry "ITA"]
[SourceTitle "playchess.com"]
[Source "ChessBase"]
[SourceQuality "1"]
[TimeControl "40/5400+30:1800+30"]

{[%evp 9,52,20,32767,32767,14,22,20,12,29,15,16,14,21,12,27,0,17,-8,0,-5,-2,0,0,0,0,0,0,0,16,0,11,-20,-11,-19,0,-22,-15,-25,-58,-37,-41,-30,-44,-46,58]} 1. e4 {[%emt 0:00:30]} e6 {[%emt 0:01:00]} 2. d4 {[%emt 0:00:30]} d5 {[%emt 0:00:00]} 3. Nd2 {[%emt 0:00:00]} c5 {[%emt 0:01:00]} 4. exd5 {[%emt 0:00:00]} Qxd5 {[%emt 0:00:30]} 5. Ngf3 {[%emt 0:00:30]} cxd4 {[%emt 0:00:30]} 6. Bc4 {[%emt 0:00:00]} Qd7 {[%emt 0:00:30]} 7. O-O {[%emt 0:00:00]} Nc6 {[%emt 0:00:30]} 8. Nb3 {[%emt 0:00:30]} a6 {[%emt 0:00:00]} 9. Nbxd4 {[%emt 0:01:30]} Nxd4 {[%emt 0:00:00]} 10. Nxd4 {[%emt 0:00:30]} Qc7 {[%emt 0:00:30] LiveBook: 95 Games} 11. Bb3 {[%emt 0:00:30]} Bd6 {[%emt 0:01:30]} 12. h3 {[%emt 0:03:30]} Ne7 {[%emt 0:00:30]} 13. Re1 {[%emt 0:01:30]} O-O {[%emt 0:02:30]} 14. Qe2 {[%emt 0:07:30]} Ng6 {[%emt 0:11:30]} 15. Be3 {[%emt 0:10:30]} b6 {[%emt 0:02:30]} 16. Rad1 {[%emt 0:02:30]} Bb7 {[%emt 0:06:30]} 17. Qg4 {[%emt 0:03:30]} Rfe8 {[%emt 0:08:30]} 18. c3 {[%emt 0:04:30] Ne} Ne5 {[%emt 0:13:30]} 19. Qe2 {[%emt 0:04:30]} b5 {[%emt 0:06:30]} 20. Bc1 {[%emt 0:05:30]} Ng6 {[%emt 0:03:30]} 21. Qg4 {[%emt 0:03:30]} Bh2+ {[%emt 0:08:30]} 22. Kh1 {[%emt 0:01:30]} Bf4 {[%emt 0:04:30]} 23. Bc2 {[%emt 0:07:30]} f5 {[%emt 0:08:52]} 24. Bxf4 $1 {[%emt 0:12:30]} Nxf4 {[%emt 0:02:55] Q} (24... fxg4 $2 {perishes.} 25. Bxc7 gxh3 26. Rxe6 $18) 25. Qg3 {[%emt 0:01:30]} Bxg2+ {[%emt 0:09:13]} 26. Kh2 {[%emt 0:08:30] [#]} e5 $14 {[%emt 0:02:34]} ({Viel schlechter ist} 26... Bxh3 $6 27. Ne2 $16) (26... Be4 $1 $11 {[%mdl 512]}) 27. Nxf5 {[%emt 0:02:33]} Bxh3 {[%emt 0:00:04]} 28. Nd6 {[%emt 0:01:06]} Re7 {[%emt 0:03:44]} 29. Qh4 {[%emt 0:01:35]} g6 {[%emt 0:01:28]} 30. Bb3+ {[%emt 0:01:33]} Kg7 {[%emt 0:00:53]} 31. Ne4 {[%emt 0:00:42]} Rf8 {[%emt 0:00:44]} 32. Ng5 {[%emt 0:00:20]} h6 {[%emt 0:00:59]} 33. Nxh3 {[%emt 0:00:56]} Nxh3 {[%emt 0:00:15]} 34. Qxh3 {[%emt 0:00:25]} Rxf2+ {[%emt 0:00:09]} 35. Kh1 {[%emt 0:00:11]} Rxb2 {[%emt 0:00:54]} 36. Qg3 {[%emt 0:03:43]} Qc6+ {[%emt 0:00:38]} 37. Bd5 {[%emt 0:00:09]} Qf6 {[%emt 0:00:26]} 38. Rg1 {[%emt 0:04:08]} Rf2 {[%emt 0:00:26]} 39. Be4 {[%emt 0:00:37]} g5 {[%emt 0:00:08]} 40. Rg2 {[%emt 0:00:00]} Rf4 {[%emt 0:01:38]} 41. Re2 {[%emt 0:11:32]} Rf1+ {[%emt 0:13:09] 0} 0-1